fUST/lending_fUST_20251229
["ID","MTS","AMOUNT","RATE_DAILY","PERIOD"]
[400011296,1767018540077,-292.001899,0.00019178,2]
[400011297,1767018540102,-381.892,0.00019178,2]
[400011298,1767018540131,-292.001899,0.00019178,2]
[400011299,1767018540160,-381.892,0.00019178,2]
[400011300,1767018540188,-292.001899,0.00019178,2]
[400011301,1767018540214,-381.892,0.00019178,2]
[400011302,1767018540239,-292.001899,0.00019178,2]
[400011303,1767018540264,-292.001899,0.00019178,2]
[400011304,1767018540292,-381.892,0.00019178,2]
[400011305,1767018540319,-292.001899,0.00019178,2]
[400011306,1767018540345,-381.892,0.00019178,2]
[400011307,1767018540371,-292.001899,0.00019178,2]
[400011308,1767018540398,-381.892,0.00019178,2]
[400011309,1767018540423,-381.892,0.00019178,2]
[400011310,1767018540449,-292.001899,0.00019178,2]
[400011311,1767018540475,-292.00189,0.00019178,2]
[400011312,1767018540499,-381.892,0.00019178,2]
[400011313,1767018540524,-381.892,0.00019178,2]
[400011314,1767018540549,-381.892,0.00019178,2]
[400011315,1767018540574,-381.892,0.00019178,2]
[400011316,1767018540600,-381.892,0.00019178,2]
[400011317,1767018540624,-381.892,0.00019178,2]
[400011318,1767018540649,-381.892,0.00019178,2]
[400011319,1767018540674,-381.892,0.00019178,2]
[400011320,1767018540698,-381.892,0.00019178,2]
[400011321,1767018540723,-381.892,0.00019178,2]
[400011322,1767018540871,-151.0,0.00019178,2]
[400011323,1767018540924,-381.892,0.00019178,2]
[400011324,1767018540949,-151.0,0.00019178,2]
[400011325,1767018540974,-381.892009,0.00019178,2]
[400011326,1767018540998,-151.0,0.00019178,2]
[400011327,1767018541020,-151.0,0.00019178,2]
[400011328,1767018541043,-151.0,0.00019178,2]
[400011329,1767018541067,-151.0,0.00019178,2]
[400011330,1767018541091,-151.0,0.00019178,2]
[400011331,1767018541115,-151.0,0.00019178,2]
[400011332,1767018541139,-151.0,0.00019178,2]
[400011333,1767018541165,-151.0,0.00019178,2]
[400011334,1767018541190,-151.0,0.00019178,2]
[400011335,1767018541214,-151.0,0.00019178,2]
[400011336,1767018541237,-151.0,0.00019178,2]
[400011337,1767018541262,-151.0,0.00019178,2]
[400011338,1767018541286,-151.0,0.00019178,2]
[400011339,1767018541312,-151.0,0.00019178,2]
[400011340,1767018541337,-151.0,0.00019178,2]
[400011341,1767018541363,-264.111661,0.00019178,2]
[400011342,1767018541388,-151.0,0.00019178,2]
[400011343,1767018541411,-151.0,0.00019178,2]
[400011344,1767018541436,-151.0,0.00019178,2]
[400011345,1767018541459,-151.0,0.00019178,2]
[400011346,1767018541485,-151.0,0.00019178,2]
[400011347,1767018541510,-151.0,0.00019178,2]
[400011348,1767018541537,-151.0,0.00019178,2]
[400011349,1767018541562,-151.0,0.00019178,2]
[400011350,1767018541586,-151.0,0.00019178,2]
[400011351,1767018541611,-151.0,0.00019178,2]
[400011352,1767018541635,-151.0,0.00019178,2]
[400011353,1767018541659,-167.933848,0.00019178,2]
[400011354,1767018541683,-161.39,0.000192,2]
[400011355,1767018541706,-156.66,0.000192,2]
[400011356,1767018541730,-9670.16,0.000192,2]
[400011357,1767018541755,-2206.13,0.000192,2]
[400011358,1767018541782,-270.97869173,0.00019272,2]
[400011359,1767018541804,-3227.74058389,0.00019452,2]
[400011360,1767018541828,-515.43639332,0.00019452,2]
[400011361,1767018541851,-500.0,0.00019452,2]
[400011362,1767018541875,-7629.338496,0.00019452,2]
[400011363,1767018541900,-500.0,0.00019452,2]
[400011364,1767018541924,-500.0,0.00019452,2]
[400011365,1767018541947,-510.00718018,0.00019452,2]
[400011366,1767018541969,-1086.89,0.00019452,2]
[400011367,1767018541993,-500.0,0.00019452,2]
[400011368,1767018542015,-1270.26,0.00019452,2]
[400011369,1767018542039,-557.4,0.00019452,2]
[400011370,1767018542063,-2134.46,0.00019452,2]
[400011371,1767018542085,-500.0,0.00019452,2]
[400011372,1767018542109,-500.0,0.00019452,2]
[400011373,1767018542132,-835.89,0.00019452,2]
[400011374,1767018542157,-1529.44,0.00019452,2]
[400011375,1767018542180,-500.0,0.00019452,2]
[400011376,1767018542207,-1925.75,0.00019452,2]
[400011377,1767018542231,-500.0,0.00019452,2]
[400011378,1767018542255,-681.99,0.00019452,2]
[400011379,1767018542280,-1000.0,0.00019452,2]
[400011380,1767018542306,-500.0,0.00019452,2]
[400011381,1767018542330,-497.36160661,0.00019452,2]
[400011382,1767018542353,-500.0,0.00019452,2]
[400011383,1767018542377,-286.81530226,0.00019452,2]
[400011384,1767018542401,-414.98358228,0.00019452,2]
[400011385,1767018542425,-613.72905616,0.00019452,2]
[400011386,1767018542449,-2108.31,0.00019452,2]
[400011387,1767018542473,-438.32011162,0.00019452,2]
[400011388,1767018542497,-500.0,0.00019452,2]
[400011389,1767018542520,-570.03107926,0.00019452,2]
[400011390,1767018542544,-836.09,0.00019452,2]
[400011391,1767018542568,-500.0,0.00019452,2]
[400011392,1767018542591,-594.68,0.00019452,2]
[400011393,1767018542618,-500.0,0.00019452,2]
[400011394,1767018542642,-736.92,0.00019452,2]
[400011395,1767018542665,-384.42284736,0.00019452,2]
[400011396,1767018542691,-391.47361695,0.00019452,2]
[400011397,1767018542715,-438.91001104,0.00019452,2]
[400011398,1767018542739,-359.62185946,0.00019452,2]
[400011399,1767018542763,-1000.0,0.00019452,2]
[400011400,1767018542786,-276.66865437,0.00019452,2]
[400011401,1767018542811,-193.714378,0.00019452,2]
[400011402,1767018542836,-521.16197729,0.00019452,2]
[400011403,1767018542860,-500.0,0.00019452,2]
[400011404,1767018542885,-183.63537504,0.00019452,2]
[400011405,1767018542909,-465.31557181,0.00019452,2]
[400011406,1767018542932,-500.0,0.00019452,2]
[400011407,1767018542956,-500.0,0.00019452,2]
[400011408,1767018542980,-1812.46,0.00019452,2]
[400011409,1767018543004,-576.25541193,0.00019452,2]
[400011410,1767018543033,-314.94131652,0.00019452,2]
[400011411,1767018543059,-574.98627618,0.00019452,2]
[400011412,1767018543083,-500.0,0.00019452,2]
[400011413,1767018543107,-500.0,0.00019452,2]
[400011414,1767018543133,-2240.1,0.00019452,2]
[400011415,1767018543156,-2345.47,0.00019452,2]
[400011416,1767018543180,-427.64161233,0.00019452,2]
[400011417,1767018543204,-295.24883752,0.00019452,2]
[400011418,1767018543228,-500.0,0.00019452,2]
[400011419,1767018543251,-10482.13,0.00019452,2]
[400011420,1767018543276,-519.03862335,0.00019452,2]
[400011421,1767018543300,-500.0,0.00019452,2]
[400011422,1767018543323,-461.32492869,0.00019452,2]
[400011423,1767018543348,-351.74831702,0.00019452,2]
[400011424,1767018543373,-582.92938711,0.00019452,2]
[400011425,1767018543396,-359.90731785,0.00019452,2]
[400011426,1767018543420,-386.69760475,0.00019452,2]
[400011427,1767018543444,-382.15781125,0.00019452,2]
[400011428,1767018543468,-408.04164553,0.00019452,2]
[400011429,1767018543494,-500.0,0.00019452,2]
[400011430,1767018543520,-500.0,0.00019452,2]
[400011431,1767018543544,-445.55316345,0.00019452,2]
[400011432,1767018543569,-355.06711702,0.00019452,2]
[400011433,1767018543594,-422.86389252,0.00019452,2]
[400011434,1767018543621,-500.0,0.00019452,2]
[400011435,1767018543645,-491.44374409,0.00019452,2]
[400011436,1767018543669,-500.0,0.00019452,2]
[400011437,1767018543694,-153.0,0.00019479,2]
[400011438,1767018543839,-153.0,0.00019479,2]
[400011439,1767018543867,-153.0,0.00019479,2]
[400011440,1767018543892,-153.0,0.00019479,2]
[400011441,1767018543917,-153.0,0.00019479,2]
[400011442,1767018543940,-153.0,0.00019479,2]
[400011443,1767018543964,-151.0,0.000195,2]
[400011444,1767018543988,-460.0,0.00019539,2]
[400011445,1767018544013,-3227.74058389,0.00019726,2]
[400011446,1767018544038,-501.28701467,0.00019726,2]
[400011447,1767018544062,-500.0,0.00019726,2]
[400011448,1767018544085,-500.0,0.00019726,2]
[400011449,1767018544109,-1086.89,0.00019726,2]
[400011450,1767018544133,-500.0,0.00019726,2]
[400011451,1767018544158,-1270.26,0.00019726,2]
[400011452,1767018544183,-557.4,0.00019726,2]
[400011453,1767018544207,-2134.46,0.00019726,2]
[400011454,1767018544232,-500.0,0.00019726,2]
[400011455,1767018544256,-500.0,0.00019726,2]
[400011456,1767018544280,-835.89,0.00019726,2]
[400011457,1767018544306,-1529.44,0.00019726,2]
[400011458,1767018544330,-500.0,0.00019726,2]
[400011459,1767018544354,-1925.75,0.00019726,2]
[400011460,1767018544380,-500.0,0.00019726,2]
[400011461,1767018544403,-681.99,0.00019726,2]
[400011462,1767018544429,-1000.0,0.00019726,2]
[400011463,1767018544453,-500.0,0.00019726,2]
[400011464,1767018544477,-500.0,0.00019726,2]
[400011465,1767018544500,-2108.31,0.00019726,2]
[400011466,1767018544525,-500.0,0.00019726,2]
[400011467,1767018544548,-836.09,0.00019726,2]
[400011468,1767018544572,-203.72,0.00019726,2]
[400011469,1767018544595,-594.68,0.00019726,2]
[400011470,1767018544620,-500.0,0.00019726,2]
[400011471,1767018544646,-736.92,0.00019726,2]
[400011472,1767018544669,-1000.0,0.00019726,2]
[400011473,1767018544695,-500.0,0.00019726,2]
[400011474,1767018544720,-255.67595508,0.00019726,2]
[400011475,1767018544744,-500.0,0.00019726,2]
[400011476,1767018544768,-1812.46,0.00019726,2]
[400011477,1767018544793,-500.0,0.00019726,2]
[400011478,1767018544816,-500.0,0.00019726,2]
[400011479,1767018544840,-2240.1,0.00019726,2]
[400011480,1767018544864,-2345.47,0.00019726,2]
[400011481,1767018544889,-500.0,0.00019726,2]
[400011482,1767018544914,-10482.13,0.00019726,2]
[400011483,1767018544938,-500.0,0.00019726,2]
[400011484,1767018544965,-500.0,0.00019726,2]
[400011485,1767018544991,-188.36476689,0.00019726,2]
[400011486,1767018545016,-500.0,0.00019726,2]
[400011487,1767018545041,-179.9694093,0.00019751,2]
[400011488,1767018545065,-153.0,0.00019751,2]
[400011489,1767018545088,-153.0,0.00019751,2]
[400011490,1767018545112,-153.0,0.00019751,2]
[400011491,1767018545136,-153.0,0.00019751,2]
[400011492,1767018545160,-153.0,0.00019751,2]
[400011493,1767018545184,-153.0,0.00019751,2]
[400011494,1767018545211,-59494.0,0.0002,7]
[400011495,1767018545235,-99999.999999,0.0002,15]
[400011496,1767018545259,-2672.0,0.0002,3]
[400011497,1767018545284,-8938.0,0.0002,2]
[400011498,1767018545308,-28339.10739475,0.0002,4]
[400011499,1767018545333,-150.0,0.0002,2]
[400011500,1767018545357,-1280.40585075,0.0002,2]
[400011501,1767018545381,-29833.12104178,0.0002,2]
[400011502,1767018545406,-1042.0,0.0002,2]
[400011503,1767018545431,-50701.45680191,0.0002,10]
[400011504,1767018545454,-3227.74058389,0.0002,2]
[400011505,1767018545479,-2084.0,0.0002,2]
[400011506,1767018545504,-2000.0,0.0002,7]
[400011507,1767018545529,-500.0,0.0002,2]
[400011508,1767018545552,-500.0,0.0002,2]
[400011509,1767018545575,-1086.89,0.0002,2]
[400011510,1767018545601,-302.10028417,0.0002,2]
[400011511,1767018545625,-1270.26,0.0002,2]
[400011512,1767018545649,-557.4,0.0002,2]
[400011513,1767018545673,-2134.46,0.0002,2]
[400011514,1767018545696,-500.0,0.0002,2]
[400011515,1767018545719,-500.0,0.0002,2]
[400011516,1767018545743,-835.89,0.0002,2]
[400011517,1767018545767,-1529.44,0.0002,2]
[400011518,1767018545790,-500.0,0.0002,2]
[400011519,1767018545813,-1925.75,0.0002,2]
[400011520,1767018545836,-500.0,0.0002,2]
[400011521,1767018545859,-681.99,0.0002,2]
[400011522,1767018545883,-1000.0,0.0002,2]
[400011523,1767018545907,-500.0,0.0002,2]
[400011524,1767018545930,-500.0,0.0002,2]
[400011525,1767018545956,-2108.31,0.0002,2]
[400011526,1767018545982,-500.0,0.0002,2]
[400011527,1767018546006,-836.09,0.0002,2]
[400011528,1767018546031,-594.68,0.0002,2]
[400011529,1767018546055,-503.45367287,0.0002,2]
[400011530,1767018546079,-736.92,0.0002,2]
[400011531,1767018546102,-1000.0,0.0002,2]
[400011532,1767018546127,-500.0,0.0002,2]
[400011533,1767018546152,-500.0,0.0002,2]
[400011534,1767018546177,-1812.46,0.0002,2]
[400011535,1767018546200,-500.0,0.0002,2]
[400011536,1767018546224,-500.0,0.0002,2]
[400011537,1767018546248,-2240.1,0.0002,2]
[400011538,1767018546272,-2345.47,0.0002,2]
[400011539,1767018546297,-500.0,0.0002,2]
[400011540,1767018546322,-10482.13,0.0002,2]
[400011541,1767018546348,-500.0,0.0002,2]
[400011542,1767018546375,-507.77725803,0.0002,2]
[400011543,1767018546399,-500.0,0.0002,2]
[400011544,1767018546423,-1041.66666667,0.0002002,2]
[400011545,1767018546446,-560.0,0.00020087,2]
[400011546,1767018546471,-367.59,0.000201,7]
[400011547,1767018546496,-460.425667,0.00020187,2]
[400011548,1767018546521,-3227.74058389,0.00020273,2]
[400011549,1767018546545,-500.0,0.00020273,2]
[400011550,1767018546569,-500.0,0.00020273,2]
[400011551,1767018546593,-1086.89,0.00020273,2]
[400011552,1767018546619,-1270.26,0.00020273,2]
[400011553,1767018546643,-557.4,0.00020273,2]
[400011554,1767018546792,-2134.46,0.00020273,2]
[400011555,1767018546820,-500.0,0.00020273,2]
[400011556,1767018546844,-500.0,0.00020273,2]
[400011557,1767018546871,-835.89,0.00020273,2]
[400011558,1767018546895,-1529.44,0.00020273,2]
[400011559,1767018546918,-500.0,0.00020273,2]
[400011560,1767018546943,-1925.75,0.00020273,2]
[400011561,1767018546968,-500.0,0.00020273,2]
[400011562,1767018546993,-681.99,0.00020273,2]
[400011563,1767018547017,-1000.0,0.00020273,2]
[400011564,1767018547041,-500.0,0.00020273,2]
[400011565,1767018547065,-500.0,0.00020273,2]
[400011566,1767018547090,-2108.31,0.00020273,2]
[400011567,1767018547117,-500.0,0.00020273,2]
[400011568,1767018547143,-836.09,0.00020273,2]
[400011569,1767018547169,-594.68,0.00020273,2]
[400011570,1767018547195,-736.92,0.00020273,2]
[400011571,1767018547220,-1000.0,0.00020273,2]
[400011572,1767018547247,-500.0,0.00020273,2]
[400011573,1767018547272,-500.0,0.00020273,2]
[400011574,1767018547297,-1812.46,0.00020273,2]
[400011575,1767018547323,-500.0,0.00020273,2]
[400011576,1767018547348,-500.0,0.00020273,2]
[400011577,1767018547372,-2240.1,0.00020273,2]
[400011578,1767018547397,-2345.47,0.00020273,2]
[400011579,1767018547420,-584.07655682,0.00020273,2]
[400011580,1767018547444,-10482.13,0.00020273,2]
[400011581,1767018547468,-500.0,0.00020273,2]
[400011582,1767018547493,-500.0,0.00020273,2]
[400011583,1767018547516,-153.0,0.00020301,2]
[400011584,1767018547540,-153.0,0.00020301,2]
[400011585,1767018547564,-153.0,0.00020301,2]
[400011586,1767018547588,-153.0,0.00020301,2]
[400011587,1767018547615,-153.0,0.00020301,2]
[400011588,1767018547642,-153.0,0.00020301,2]
[400011589,1767018547666,-153.0,0.00020301,2]
[400011590,1767018547690,-153.0,0.00020301,2]
[400011591,1767018547716,-153.0,0.00020301,2]
[400011592,1767018547739,-153.0,0.00020301,2]
[400011593,1767018547763,-153.0,0.00020301,2]
[400011594,1767018547786,-155.3875453,0.00020301,2]
[400011595,1767018547811,-153.0,0.00020301,2]
[400011596,1767018547835,-153.0,0.00020301,2]
[400011597,1767018547860,-153.0,0.00020301,2]
[400011598,1767018547886,-153.0,0.00020301,2]
[400011599,1767018547912,-153.0,0.00020301,2]
[400011600,1767018547938,-153.0,0.00020301,2]
[400011601,1767018547964,-153.0,0.00020301,2]
[400011602,1767018547994,-1000.0,0.00020456,2]
[400011603,1767018548027,-244.0,0.00020456,2]
[400011604,1767018548053,-3227.74058389,0.00020547,2]
[400011605,1767018548081,-500.0,0.00020547,2]
[400011606,1767018548108,-500.0,0.00020547,2]
[400011607,1767018548135,-1086.89,0.00020547,2]
[400011608,1767018548162,-1270.26,0.00020547,2]
[400011609,1767018548188,-557.4,0.00020547,2]
[400011610,1767018548215,-2134.46,0.00020547,2]
[400011611,1767018548243,-500.0,0.00020547,2]
[400011612,1767018548271,-500.0,0.00020547,2]
[400011613,1767018548300,-835.89,0.00020547,2]
[400011614,1767018548328,-1529.44,0.00020547,2]
[400011615,1767018548356,-500.0,0.00020547,2]
[400011616,1767018548386,-1925.75,0.00020547,2]
[400011617,1767018548416,-500.0,0.00020547,2]
[400011618,1767018548445,-681.99,0.00020547,2]
[400011619,1767018548474,-1000.0,0.00020547,2]
[400011620,1767018548500,-189.52494036,0.00020547,2]
[400011621,1767018548528,-500.0,0.00020547,2]
[400011622,1767018548556,-2108.31,0.00020547,2]
[400011623,1767018548585,-627.83552003,0.00020547,2]
[400011624,1767018548613,-1629.988117,0.00020547,2]
[400011625,1767018548641,-1629.988117,0.00020547,2]
[400011626,1767018548669,-1629.988117,0.00020547,2]
[400011627,1767018548698,-1629.988117,0.00020547,2]
[400011628,1767018548726,-836.09,0.00020547,2]
[400011629,1767018548754,-594.68,0.00020547,2]
[400011630,1767018548782,-204.55178,0.00020547,2]
[400011631,1767018548809,-204.55178,0.00020547,2]
[400011632,1767018548836,-156.233766,0.00020547,2]
[400011633,1767018548865,-204.55178,0.00020547,2]
[400011634,1767018548893,-204.55178,0.00020547,2]
[400011635,1767018548922,-151.0,0.00020547,2]
[400011636,1767018548948,-736.92,0.00020547,2]
[400011637,1767018548977,-151.0,0.00020547,2]
[400011638,1767018549006,-151.0,0.00020547,2]
[400011639,1767018549036,-151.0,0.00020547,2]
[400011640,1767018549066,-151.0,0.00020547,2]
[400011641,1767018549095,-1000.0,0.00020547,2]
[400011642,1767018549126,-316.78199666,0.00020547,2]
[400011643,1767018549157,-500.0,0.00020547,2]
[400011644,1767018549186,-1812.46,0.00020547,2]
[400011645,1767018549216,-262.08073151,0.00020547,2]
[400011646,1767018549244,-500.0,0.00020547,2]
[400011647,1767018549273,-2240.1,0.00020547,2]
[400011648,1767018549302,-2345.47,0.00020547,2]
[400011649,1767018549331,-10482.13,0.00020547,2]
[400011650,1767018549359,-604.91477,0.00020547,2]
[400011651,1767018549392,-500.0,0.00020547,2]
[400011652,1767018549422,-203.769691,0.00020548,2]
[400011653,1767018549452,-2000.0,0.00020556,7]
[400011654,1767018549482,-480.0,0.00020634,2]
[400011655,1767018549511,-160.0,0.00020669,3]
[400011656,1767018549541,-161.39,0.000207,2]
[400011657,1767018549569,-156.66,0.000207,2]
[400011658,1767018549598,-9670.16,0.000207,2]
[400011659,1767018549629,-3227.74058389,0.00020821,2]
[400011660,1767018549658,-500.0,0.00020821,2]
[400011661,1767018549687,-500.0,0.00020821,2]
[400011662,1767018549716,-1086.89,0.00020821,2]
[400011663,1767018549744,-1270.26,0.00020821,2]
[400011664,1767018549770,-557.4,0.00020821,2]
[400011665,1767018549798,-2134.46,0.00020821,2]
[400011666,1767018549826,-500.0,0.00020821,2]
[400011667,1767018549855,-500.0,0.00020821,2]
[400011668,1767018549884,-835.89,0.00020821,2]
[400011669,1767018550035,-1529.44,0.00020821,2]
[400011670,1767018550066,-500.0,0.00020821,2]
[400011671,1767018550095,-1925.75,0.00020821,2]
[400011672,1767018550127,-500.0,0.00020821,2]
[400011673,1767018550160,-681.99,0.00020821,2]
[400011674,1767018550192,-1000.0,0.00020821,2]
[400011675,1767018550224,-500.0,0.00020821,2]
[400011676,1767018550257,-2108.31,0.00020821,2]
[400011677,1767018550287,-836.09,0.00020821,2]
[400011678,1767018550318,-594.68,0.00020821,2]
[400011679,1767018550347,-736.92,0.00020821,2]
[400011680,1767018550379,-1000.0,0.00020821,2]
[400011681,1767018550410,-270.00334258,0.00020821,2]
[400011682,1767018550446,-1812.46,0.00020821,2]
[400011683,1767018550477,-180.59460156,0.00020821,2]
[400011684,1767018550507,-2240.1,0.00020821,2]
[400011685,1767018550535,-2345.47,0.00020821,2]
[400011686,1767018550563,-10482.13,0.00020821,2]
[400011687,1767018550596,-500.0,0.00020821,2]
[400011688,1767018550626,-304.0,0.00020822,3]
[400011689,1767018550662,-165.0050275,0.000209,2]
[400011690,1767018550693,-106427.19890264,0.00021,2]
[400011691,1767018550722,-150.0,0.00021,2]
[400011692,1767018550751,-3227.74058389,0.00021095,2]
[400011693,1767018550779,-500.0,0.00021095,2]
[400011694,1767018550811,-500.0,0.00021095,2]
[400011695,1767018550841,-1086.89,0.00021095,2]
[400011696,1767018550871,-1270.26,0.00021095,2]
[400011697,1767018550900,-557.4,0.00021095,2]
[400011698,1767018550930,-2134.46,0.00021095,2]
[400011699,1767018550960,-500.0,0.00021095,2]
[400011700,1767018550990,-500.0,0.00021095,2]
[400011701,1767018551020,-835.89,0.00021095,2]
[400011702,1767018551052,-1529.44,0.00021095,2]
[400011703,1767018551084,-500.0,0.00021095,2]
[400011704,1767018551115,-1925.75,0.00021095,2]
[400011705,1767018551147,-500.0,0.00021095,2]
[400011706,1767018551177,-681.99,0.00021095,2]
[400011707,1767018551209,-1000.0,0.00021095,2]
[400011708,1767018551244,-500.0,0.00021095,2]
[400011709,1767018551276,-2108.31,0.00021095,2]
[400011710,1767018551308,-836.09,0.00021095,2]
[400011711,1767018551338,-594.68,0.00021095,2]
[400011712,1767018551371,-736.92,0.00021095,2]
[400011713,1767018551402,-1000.0,0.00021095,2]
[400011714,1767018551435,-1812.46,0.00021095,2]
[400011715,1767018551468,-2240.1,0.00021095,2]
[400011716,1767018551501,-2345.47,0.00021095,2]
[400011717,1767018551534,-10482.13,0.00021095,2]
[400011718,1767018551565,-500.0,0.00021095,2]
[400011719,1767018551597,-2206.13,0.000211,2]
[400011720,1767018551633,-5155.54653674,0.00021102,2]
[400011721,1767018551664,-2000.0,0.00021111,7]
[400011722,1767018551694,-153.0,0.00021123,2]
[400011723,1767018551721,-153.0,0.00021123,2]
[400011724,1767018551750,-153.0,0.00021123,2]
[400011725,1767018551779,-153.0,0.00021123,2]
[400011726,1767018551811,-153.0,0.00021123,2]
[400011727,1767018551843,-302.65152583,0.00021272,2]
[400011728,1767018551875,-160.0,0.0002135,4]
[400011729,1767018551903,-3227.74058389,0.00021369,2]
[400011730,1767018551932,-500.0,0.00021369,2]
[400011731,1767018551960,-245.40571301,0.00021369,2]
[400011732,1767018551988,-1086.89,0.00021369,2]
[400011733,1767018552019,-1270.26,0.00021369,2]
[400011734,1767018552050,-557.4,0.00021369,2]
[400011735,1767018552081,-2134.46,0.00021369,2]
[400011736,1767018552112,-500.0,0.00021369,2]
[400011737,1767018552143,-500.0,0.00021369,2]
[400011738,1767018552175,-835.89,0.00021369,2]
[400011739,1767018552206,-1529.44,0.00021369,2]
[400011740,1767018552235,-500.0,0.00021369,2]
[400011741,1767018552262,-1925.75,0.00021369,2]
[400011742,1767018552290,-500.0,0.00021369,2]
[400011743,1767018552319,-681.99,0.00021369,2]
[400011744,1767018552348,-1000.0,0.00021369,2]
[400011745,1767018552377,-500.0,0.00021369,2]
[400011746,1767018552405,-2108.31,0.00021369,2]
[400011747,1767018552432,-836.09,0.00021369,2]
[400011748,1767018552461,-594.68,0.00021369,2]
[400011749,1767018552490,-736.92,0.00021369,2]
[400011750,1767018552521,-1000.0,0.00021369,2]
[400011751,1767018552553,-1812.46,0.00021369,2]
[400011752,1767018552582,-2240.1,0.00021369,2]
[400011753,1767018552613,-2345.47,0.00021369,2]
[400011754,1767018552641,-10482.13,0.00021369,2]
[400011755,1767018552673,-500.0,0.00021369,2]
[400011756,1767018552702,-2183.3406419,0.00021392,2]
[400011757,1767018552729,-150.0,0.00021552,2]
[400011758,1767018552756,-3227.74058389,0.00021643,2]
[400011759,1767018552783,-500.0,0.00021643,2]
[400011760,1767018552811,-1086.89,0.00021643,2]
[400011761,1767018552838,-1270.26,0.00021643,2]
[400011762,1767018552864,-557.4,0.00021643,2]
[400011763,1767018552891,-2134.46,0.00021643,2]
[400011764,1767018552918,-500.0,0.00021643,2]
[400011765,1767018552945,-500.0,0.00021643,2]
[400011766,1767018552971,-1529.44,0.00021643,2]
[400011767,1767018552997,-835.89,0.00021643,2]
[400011768,1767018553023,-500.0,0.00021643,2]
[400011769,1767018553051,-1925.75,0.00021643,2]
[400011770,1767018553080,-500.0,0.00021643,2]
[400011771,1767018553109,-681.99,0.00021643,2]
[400011772,1767018553137,-1000.0,0.00021643,2]
[400011773,1767018553163,-500.0,0.00021643,2]
[400011774,1767018553189,-2108.31,0.00021643,2]
[400011775,1767018553214,-836.09,0.00021643,2]
[400011776,1767018553240,-594.68,0.00021643,2]
[400011777,1767018553265,-736.92,0.00021643,2]
[400011778,1767018553291,-1000.0,0.00021643,2]
[400011779,1767018553317,-1812.46,0.00021643,2]
[400011780,1767018553344,-2240.1,0.00021643,2]
[400011781,1767018553369,-2345.47,0.00021643,2]
[400011782,1767018553397,-10482.13,0.00021643,2]
[400011783,1767018553425,-500.0,0.00021643,2]
[400011784,1767018553450,-5000.0,0.00021651,2]
[400011785,1767018553601,-2000.0,0.00021667,7]
[400011786,1767018553629,-416.0,0.00021749,2]
[400011787,1767018553657,-1363.58773593,0.00021753,2]
[400011788,1767018553684,-3227.74058389,0.00021917,2]
[400011789,1767018553710,-500.0,0.00021917,2]
[400011790,1767018553737,-1086.89,0.00021917,2]
[400011791,1767018553765,-1270.26,0.00021917,2]
[400011792,1767018553790,-557.4,0.00021917,2]
[400011793,1767018553816,-2134.46,0.00021917,2]
[400011794,1767018553843,-500.0,0.00021917,2]
[400011795,1767018553870,-500.0,0.00021917,2]